bitfinex/quotes_ETHUSD_20251212
["timestamp","ask_amount","ask_price","bid_price","bid_amount"]
[1765515988012,0.8462,3249.8,3249.7,3.65868241]
[1765515988518,0.8462,3249.8,3249.7,0.001]
[1765515996844,0.1901,3250.4,3249.7,0.001]
[1765515996845,0.1901,3250.4,3249.7,0.4982]
[1765515997054,0.8555358,3250.3,3249.8,0.486]
[1765515997343,0.4808,3250.2,3249.8,0.486]
[1765515997548,0.3708,3249.9,3249.8,0.486]
[1765515998950,0.3708,3249.9,3249.8,3.56311243]
[1765516001649,0.4797,3250.1,3249.8,3.56311243]
[1765516002941,0.6775,3250.4,3250.1,3.0768284]
[1765516003148,0.4874,3250.6,3250.1,3.0768284]
[1765516003322,0.3565,3250.2,3250.0,3.07689016]
[1765516003825,0.3565,3250.2,3249.8,0.486]
[1765516003826,0.491,3250.1,3249.8,0.486]
[1765516004156,0.3565,3249.9,3249.8,0.486]
[1765516004652,0.8426,3249.9,3249.8,0.486]
[1765516005147,0.8426,3249.9,3249.7,3.07819638]
[1765516005360,0.4923,3249.8,3249.7,0.487]
[1765516006054,0.4923,3249.8,3249.7,3.56420712]
[1765516006852,0.0049,3249.8,3249.7,3.56420712]
[1765516009939,0.4923,3249.8,3249.7,3.56420712]
[1765516011857,0.4923,3249.8,3249.7,0.487]
[1765516012955,0.4923,3249.8,3249.7,3.56420712]
[1765516013490,0.0049,3249.8,3249.7,3.07820712]
[1765516013761,0.0049,3249.8,3249.7,3.56420712]
[1765516014061,0.4874,3250.0,3249.7,4.05130712]
[1765516014552,0.4874,3250.0,3249.7,3.56420712]
[1765516015453,0.3565,3249.8,3249.7,3.56420712]
[1765516016033,0.3565,3249.8,3249.7,0.487]
[1765516016263,0.8426,3249.8,3249.7,3.56420712]
[1765516016755,0.3565,3249.8,3249.7,3.56420712]
[1765516016952,0.8426,3249.8,3249.7,0.487]
[1765516018363,0.8426,3249.8,3249.7,3.56420712]
[1765516018573,0.3565,3249.8,3249.7,3.56420712]
[1765516019678,0.3565,3249.8,3249.7,0.487]
[1765516019978,0.8426,3249.8,3249.7,0.487]
[1765516020549,0.8426,3249.8,3249.7,3.56420712]
[1765516021077,0.3565,3249.8,3249.7,3.56420712]
[1765516021575,0.486,3250.6,3249.7,3.56420712]
[1765516021576,0.4874,3250.2,3249.7,4.05130712]
[1765516021954,0.4874,3250.5,3249.7,4.05130712]
[1765516022153,0.4874,3250.5,3249.7,4.50340712]
[1765516022354,0.40497573,3250.4,3249.7,4.05130712]
[1765516022754,0.4874,3250.3,3249.7,4.05130712]
[1765516024884,0.4874,3250.3,3249.7,7.12851424]
[1765516025350,0.4874,3250.3,3249.7,4.05130712]
[1765516026182,0.3565,3249.8,3249.7,0.487]
[1765516026787,0.8426,3249.8,3249.7,0.001]
[1765516027287,0.3565,3249.8,3249.7,0.001]
[1765516027859,0.4874,3250.3,3249.7,0.4881]
[1765516028059,0.84379708,3250.2,3249.7,0.4881]
[1765516028658,0.4874,3250.1,3249.7,0.4881]
[1765516029579,0.3565,3249.8,3249.7,0.001]
[1765516030090,0.8426,3249.8,3249.7,0.001]
[1765516038311,0.3565,3249.8,3249.7,0.001]
[1765516038524,0.77837529,3250.7,3249.7,1.4052]
[1765516038525,0.6603,3250.7,3249.7,1.4052]
[1765516038818,0.4624,3250.6,3249.9,0.4603]
[1765516039200,0.4624,3250.6,3250.0,3.53482307]
[1765516039714,0.4624,3250.6,3250.0,0.4579]
[1765516039921,0.37365659,3250.5,3250.0,0.4579]
[1765516040507,0.4624,3250.4,3250.0,0.4579]
[1765516041933,0.37365659,3250.5,3249.9,3.07699832]
[1765516042139,0.4624,3250.4,3249.9,3.07699832]
[1765516042336,0.8536477,3250.4,3249.9,3.07699832]
[1765516042805,0.4624,3250.3,3249.9,3.07699832]
[1765516044022,0.4624,3250.3,3249.9,3.07701775]
[1765516044721,0.4624,3250.3,3249.9,3.53491775]
[1765516045733,3.27417696,3250.7,3249.9,3.53491775]
[1765516045930,0.4624,3250.5,3249.9,6.6119355]
[1765516046224,0.4624,3250.5,3249.9,3.53491775]
[1765516046725,0.3274177,3250.6,3249.9,3.53491775]
[1765516046923,0.4624,3250.5,3249.9,3.53491775]
[1765516049631,0.4624,3250.5,3249.9,6.6119355]
[1765516050725,0.1979,3250.7,3250.0,0.4579]
[1765516050925,0.6603,3250.7,3250.1,0.1979]
[1765516051443,0.4624,3250.7,3250.2,0.4579]
[1765516052717,0.4624,3250.7,3250.2,3.07673373]
[1765516057857,0.4624,3250.7,3250.2,6.15346746]
[1765516058039,0.6525,3251.1,3250.6,0.4603]
[1765516058576,0.4624,3251.0,3250.6,0.4603]
[1765516058856,0.4624,3251.0,3250.3,0.4579]
[1765516059841,0.4624,3251.0,3250.4,3.07654442]
[1765516060045,0.4624,3251.0,3250.4,6.15308884]
[1765516060958,0.1901,3251.1,3250.5,0.4579]
[1765516061163,0.4624,3251.2,3250.5,0.9439]
[1765516061458,5.68236944,3251.7,3251.1,0.4603]
[1765516061459,0.002,3251.7,3251.1,0.4603]
[1765516061630,0.002,3251.7,3251.1,0.6535]
[1765516061829,0.002,3251.7,3251.3,3.07569279]
[1765516062232,0.4644,3251.7,3251.3,3.07569279]
[1765516062632,0.4644,3251.7,3251.3,3.53359279]
[1765516063256,0.002,3251.7,3251.3,6.60928558]
[1765516063567,0.002,3251.7,3251.6,0.4935]
[1765516064033,0.002,3251.7,3251.6,3.56890902]
[1765516065028,0.002,3251.7,3251.6,4.06190902]
[1765516065224,0.002,3251.7,3251.6,4.64238431]
[1765516065458,0.002,3251.7,3251.6,6.0192904]
[1765516066838,0.002,3251.7,3251.6,6.0122904]
[1765516067459,0.002,3251.7,3251.6,6.5052904]
[1765516081378,0.3736,3251.7,3251.6,3.07540902]
[1765516081544,0.3736,3251.7,3250.6,3.07631212]
[1765516081545,0.8616,3251.7,3250.6,3.07631212]
[1765516081746,0.49,3251.7,3250.7,0.3736]
[1765516081954,0.4891,3251.6,3251.1,3.07581635]
[1765516082160,0.61714694,3251.5,3251.1,3.07581635]
[1765516082356,0.3716,3251.2,3250.9,6.15212208]
[1765516082563,0.0037,3251.0,3250.9,3.07605084]
[1765516082742,0.4891,3251.4,3250.9,3.07605084]
[1765516082948,0.4891,3251.4,3250.9,6.15212208]
[1765516083146,0.4891,3251.6,3251.0,0.493]
[1765516083443,0.4891,3251.6,3251.0,1.07347529]
[1765516083647,0.002,3251.7,3251.0,7.83251159]
[1765516083848,0.4891,3251.6,3251.0,7.83251159]
[1765516084184,0.4891,3251.6,3251.0,6.75384473]
[1765516084479,0.4891,3251.6,3251.1,6.151764]
[1765516084680,0.4891,3251.6,3251.2,0.485]
[1765516086764,0.4891,3251.6,3251.3,6.15138558]
[1765516087261,0.3716,3251.4,3251.3,3.07569279]
[1765516087576,0.4891,3251.6,3251.3,6.15138558]
[1765516087890,0.3716,3251.4,3251.2,3.07578133]
[1765516088064,0.488,3251.5,3251.2,3.07578133]
[1765516088065,0.0049,3251.3,3251.2,3.07578133]
[1765516088496,0.494,3251.3,3251.2,3.07578133]
[1765516088698,0.494,3251.3,3250.8,6.15233172]
[1765516088899,0.3668,3251.2,3250.8,8.2336446]
[1765516089070,0.4891,3251.3,3250.8,5.24495403]
[1765516089071,0.0085,3250.9,3250.8,5.24495403]
[1765516089393,0.4891,3251.2,3250.8,6.73280701]
[1765516091071,0.3716,3250.9,3250.8,3.65664115]
[1765516091500,0.8596,3250.9,3250.8,3.65664115]
[1765516091704,0.3716,3250.9,3250.8,3.65664115]
[1765516091914,0.488,3251.3,3250.8,7.71930701]
[1765516092767,0.4891,3251.5,3250.8,7.71930701]
[1765516092967,0.4891,3251.5,3250.8,7.22630701]
[1765516093204,0.4891,3251.5,3250.9,0.4824]
[1765516094308,0.4891,3251.5,3250.8,6.73280701]
[1765516095016,0.4772,3251.5,3250.8,7.21520701]
[1765516095215,0.4772,3251.5,3250.9,1.11472039]
[1765516095782,0.3834,3251.0,3250.8,6.73280701]
[1765516095994,0.0038,3250.9,3250.8,4.14164115]
[1765516097122,1.0535,3250.9,3250.3,0.485]
[1765516097322,0.4881,3250.4,3250.3,0.485]
[1765516097619,0.8642,3250.4,3250.3,0.485]
[1765516099317,0.8642,3250.4,3250.3,3.56163907]
[1765516101222,0.8642,3250.4,3250.0,0.486]
[1765516101395,0.3761,3250.3,3250.0,1.06647529]
[1765516102506,0.4628,3250.5,3250.0,1.06647529]
[1765516102701,0.4628,3250.8,3250.0,1.56547529]
[1765516102902,0.6522,3250.9,3250.1,0.6886]
[1765516103104,0.1894,3250.9,3250.2,9.23020119]
[1765516103308,0.6522,3251.2,3250.2,10.30967648]
[1765516103502,0.6522,3251.2,3250.3,0.499]
[1765516103805,0.4628,3251.1,3250.4,0.486]
[1765516104009,0.4011,3250.5,3250.4,0.486]
[1765516104406,0.8633,3250.5,3250.4,0.486]
[1765516105233,0.8633,3250.5,3250.4,3.56254442]
[1765516108640,0.8633,3250.5,3250.4,3.07654442]
[1765516110040,0.8633,3250.5,3250.3,3.07663907]
[1765516110342,0.4628,3250.4,3250.3,3.65711436]
[1765516110512,0.8639,3250.4,3250.3,3.65711436]
[1765516112252,0.8633,3250.4,3249.8,3.07710459]
[1765516112424,0.4628,3250.3,3249.7,0.001]
[1765516112625,0.4011,3249.8,3249.7,3.07820712]
[1765516113615,0.4622,3250.1,3249.7,6.61411424]
[1765516113815,3.07590041,3251.1,3250.0,0.4587]
[1765516114054,0.4628,3251.1,3250.0,0.4587]
[1765516114237,0.1894,3251.2,3250.1,6.8427568]
[1765516114238,0.4628,3251.0,3250.1,6.8427568]
[1765516114435,0.4628,3251.0,3250.2,0.486]
[1765516115965,0.4628,3251.0,3250.3,3.07663907]
[1765516116147,0.35387445,3250.9,3250.3,3.07663907]
[1765516116530,0.4628,3250.9,3250.3,6.15327814]
[1765516117054,0.4628,3250.9,3250.3,3.07663907]
[1765516117242,0.4011,3250.4,3250.3,3.07663907]
[1765516117550,0.4628,3250.9,3250.3,3.07663907]
[1765516117736,0.4628,3250.9,3250.3,3.53533907]
[1765516118420,0.4628,3250.9,3250.3,6.61197814]
[1765516119255,0.1894,3251.2,3250.4,0.499]
[1765516119548,0.837911,3251.1,3250.4,0.499]
[1765516120154,0.4628,3251.0,3250.4,0.499]
[1765516120314,0.375111,3251.1,3250.5,3.07644977]
[1765516120516,0.1894,3251.2,3250.5,6.15289954]
[1765516120735,0.6522,3251.2,3250.6,0.499]
[1765516121160,0.6522,3251.2,3250.5,6.15289954]
[1765516121457,0.4628,3251.1,3250.5,6.15289954]
[1765516122117,0.4628,3251.4,3250.6,0.499]
[1765516122348,0.4628,3251.4,3251.0,3.53459835]
[1765516122943,0.4011,3251.1,3250.9,3.07600461]
[1765516123254,0.4011,3251.0,3250.5,3.07637165]
[1765516123456,0.4628,3251.4,3250.3,0.4587]
[1765516123457,0.4547,3251.3,3250.3,0.4587]
[1765516123658,0.1889,3250.9,3250.5,3.56242135]
[1765516124036,0.4547,3250.8,3250.5,3.56242135]
[1765516124540,0.1889,3250.9,3250.5,3.56242135]
[1765516124858,0.6436,3251.2,3250.7,0.481]
[1765516125253,0.4547,3251.1,3250.7,0.481]
[1765516125632,0.4096,3250.8,3250.5,3.56242135]
[1765516125959,0.4096,3250.6,3250.5,3.56242135]
[1765516126366,0.4547,3250.9,3250.5,3.56242135]
[1765516127761,0.4547,3250.9,3250.5,6.63887112]
[1765516128144,0.4096,3250.6,3250.5,0.486]
[1765516128544,0.4096,3250.6,3250.3,3.56261053]
[1765516129562,0.4096,3250.6,3250.3,0.486]
[1765516129767,0.4096,3250.6,3250.4,3.07652978]
[1765516130064,0.4096,3250.6,3250.3,3.56263814]
[1765516130272,0.4543,3250.6,3250.2,3.56271755]
[1765516130439,0.4543,3250.6,3250.2,0.486]
[1765516131069,0.4543,3250.6,3250.2,3.56265502]
[1765516133165,0.4543,3250.6,3250.2,0.486]
[1765516134469,0.4543,3250.6,3250.2,3.0767093]
[1765516136075,0.4543,3250.6,3250.1,3.56279689]
[1765516136270,0.4543,3250.6,3250.1,4.02149689]
[1765516139373,0.4547,3250.9,3250.2,0.4587]
[1765516139575,0.1889,3251.2,3250.2,0.4587]
[1765516139576,0.4547,3251.1,3250.2,0.4587]
[1765516139778,0.37194236,3251.0,3250.2,0.4587]
[1765516140277,0.1889,3251.2,3250.9,0.481]
[1765516140481,3.53023164,3251.5,3250.9,0.481]
[1765516140482,0.4547,3251.4,3250.9,0.481]
[1765516141052,0.4547,3251.6,3251.0,0.4587]
[1765516141479,0.4547,3251.6,3250.5,0.486]
[1765516141681,0.4547,3251.6,3250.8,0.4587]
[1765516141980,0.4018042,3251.5,3250.8,0.4587]
[1765516142485,0.4018042,3251.5,3250.9,3.07607124]
[1765516142676,0.4547,3251.5,3250.9,3.07607124]
[1765516143579,0.4547,3251.5,3250.8,3.07613662]
[1765516143957,0.4096,3250.9,3250.8,3.07613662]
[1765516144454,0.4096,3250.9,3250.6,6.1527007]
[1765516144654,0.4543,3251.2,3250.6,6.6114007]
[1765516145271,0.4543,3251.2,3250.7,0.70974007]
[1765516145500,0.4543,3251.2,3250.6,6.6114007]
[1765516146597,3.07731445,3251.7,3250.6,6.1527007]
[1765516146785,0.4547,3251.5,3250.7,0.4587]
[1765516148795,3.07737927,3251.7,3250.8,6.15233172]
[1765516148970,0.002,3251.7,3250.8,6.15233172]
[1765516149177,0.002,3251.7,3250.9,1.60580317]
[1765516149485,0.002,3251.7,3251.0,0.4587]
[1765516150895,0.002,3251.7,3251.1,3.075882]
[1765516151397,0.002,3251.7,3251.1,3.534582]
[1765516151564,0.002,3251.7,3251.1,6.610464]
[1765516151895,0.4567,3251.7,3251.1,3.534582]
[1765516152094,0.87716226,3251.7,3251.1,3.534582]
[1765516152295,0.42246226,3251.7,3251.1,3.534582]
[1765516152598,0.4547,3251.6,3251.1,3.534582]
[1765516152896,0.4547,3251.6,3251.0,3.07594363]
[1765516153593,0.4547,3251.6,3251.0,6.61762025]
[1765516154490,0.002,3251.7,3251.0,7.32798228]
[1765516154792,0.4728,3251.7,3251.0,4.25200566]
[1765516155775,0.4728,3251.7,3251.0,3.54164363]
[1765516157298,0.4728,3251.7,3251.0,6.61762025]
[1765516158292,0.4728,3251.7,3251.0,6.15192025]
[1765516159594,0.4728,3251.7,3251.0,6.64912025]
[1765516159779,0.4728,3251.7,3251.0,3.57314363]
[1765516160182,3.92158728,3251.7,3251.0,3.07594363]
[1765516160383,0.3937,3251.1,3250.9,3.56205326]
[1765516160778,0.4746,3251.0,3250.5,3.07638684]
[1765516160978,0.3899,3250.8,3250.5,3.07638684]
[1765516161611,0.8473,3250.8,3250.5,3.07638684]
[1765516161902,0.3899,3250.8,3250.5,3.07638684]
[1765516162887,0.3907,3250.8,3250.5,3.07638684]
[1765516163614,0.4675,3250.6,3250.5,3.07638684]
[1765516164309,0.5858,3250.9,3250.5,3.07638684]
[1765516164808,0.4574,3250.8,3250.5,3.07638684]
[1765516165409,0.4014,3250.6,3250.5,3.07638684]
[1765516169120,0.4574,3250.8,3250.5,3.54898684]
[1765516170618,4.01921975,3251.2,3250.7,0.4726]
[1765516170792,0.40192198,3251.1,3250.7,0.4726]
[1765516170981,0.85932198,3251.1,3250.5,3.07638684]
[1765516171415,0.4574,3251.0,3250.5,3.07638684]
[1765516172711,0.4574,3251.0,3250.5,3.57358684]
[1765516174311,0.4574,3251.0,3250.5,3.07638684]
[1765516174512,0.89951295,3251.0,3250.5,3.57358684]
[1765516174729,0.40192198,3251.1,3250.5,6.15283661]
[1765516175025,0.486,3251.2,3250.9,0.4726]
[1765516175625,0.9434,3251.2,3250.9,0.4726]
[1765516175789,0.9434,3251.2,3250.7,0.4972]
[1765516175990,0.486,3251.2,3250.7,0.4972]
[1765516176190,0.4574,3251.1,3250.7,0.4972]
[1765516176835,0.5958,3250.8,3250.5,6.15283661]
[1765516176985,0.5958,3250.8,3243.8,0.30828041]
[1765516176986,5.68395052,3250.6,3249.7,0.001]
[1765516177191,0.4608,3249.8,3249.7,0.001]
[1765516177426,1.07487505,3249.8,3249.7,0.001]
[1765516177720,0.4608,3249.8,3249.7,0.001]
[1765516177928,0.9182,3249.8,3249.7,0.001]
[1765516183597,0.1313,3250.2,3249.7,0.4947]
[1765516183798,0.1313,3250.2,3249.8,0.4937]
[1765516183994,3.68275713,3250.2,3249.7,0.001]
[1765516184219,0.41687571,3250.1,3249.7,0.001]
[1765516184404,0.89157571,3250.1,3249.7,0.001]
[1765516184712,0.4747,3250.0,3249.7,0.001]
[1765516184913,0.41687571,3250.1,3249.7,0.001]
[1765516185108,0.4747,3250.1,3249.7,0.001]
[1765516185931,3.55159216,3250.1,3249.7,0.001]
[1765516186433,0.4747,3250.0,3249.7,0.001]
[1765516188134,0.4372,3249.8,3249.7,0.001]
[1765516188507,0.9115,3249.8,3249.7,0.001]
[1765516189039,1.57104154,3249.8,3249.7,0.001]
[1765516189427,1.60185833,3249.8,3249.7,0.001]
[1765516190515,4.67897076,3249.8,3249.7,0.001]
[1765516192133,5.66495005,3249.8,3249.7,0.001]
[1765516193664,5.66495005,3249.8,3249.0,0.001]
[1765516193807,11.94830605,3249.1,3249.0,0.001]
[1765516194134,13.27701005,3249.1,3249.0,0.001]
[1765516194316,11.14517005,3249.1,3249.0,0.001]
[1765516195609,16.82908543,3249.1,3249.0,0.001]
[1765516199054,11.14517005,3249.1,3249.0,0.001]
[1765516199349,12.22077585,3249.1,3249.0,0.001]
[1765516201309,17.90469123,3249.1,3249.0,0.001]
[1765516203372,18.0279652,3249.1,3249.0,0.001]
[1765516203539,18.0279652,3249.1,3248.5,0.001]
[1765516203540,0.405504,3248.3,3248.0,0.001]
[1765516203862,6.57511938,3248.1,3248.0,0.001]
[1765516204163,7.51175591,3248.1,3248.0,0.001]
[1765516204325,7.93815591,3248.1,3248.0,0.001]
[1765516204966,16.70079423,3248.1,3248.0,0.001]
[1765516207650,16.82410202,3248.1,3248.0,0.001]
[1765516207953,16.70079423,3248.1,3248.0,0.001]
[1765516211476,11.50387885,3248.1,3248.0,0.001]
[1765516212168,17.18779423,3248.1,3248.0,0.001]
[1765516212339,5.81996347,3248.1,3248.0,0.001]
[1765516212537,11.50387885,3248.1,3248.0,0.001]
[1765516213638,11.01687885,3248.1,3248.0,0.001]
[1765516213872,11.50387885,3248.1,3248.0,0.001]
[1765516214367,17.18779423,3248.1,3248.0,0.001]
[1765516215674,0.405504,3247.7,3247.3,0.001]
[1765516215970,0.4467,3247.8,3247.3,0.001]
[1765516215971,6.13061538,3247.4,3247.3,0.001]
[1765516216147,6.79015692,3247.4,3247.3,0.001]
[1765516216341,7.25765692,3247.4,3247.3,0.001]
[1765516217666,10.91751879,3247.4,3247.3,0.001]
[1765516218273,0.98597929,3247.3,3246.0,0.198]
[1765516218570,0.98597929,3247.3,3245.9,0.4783]
[1765516218571,5.68391538,3246.3,3245.9,0.4783]
[1765516218771,5.68391538,3246.0,3245.9,0.4783]
[1765516219153,5.68391538,3246.0,3245.9,0.9554]
[1765516219350,5.68391538,3246.0,3245.9,0.4771]
[1765516219567,5.68391538,3246.0,3245.9,0.9554]
[1765516219766,8.7646301,3246.0,3245.9,0.9554]
[1765516220174,3.08071472,3246.0,3245.9,0.9554]
[1765516222392,3.08071472,3246.0,3245.6,0.001]
[1765516222393,8.63536767,3246.0,3245.6,0.001]
[1765516222595,5.69818258,3245.7,3245.6,0.001]
[1765516222900,6.64688258,3245.7,3245.6,0.001]
[1765516223495,8.04726187,3245.7,3245.6,0.001]
[1765516223668,8.40342311,3245.7,3245.6,0.001]
[1765516223860,11.48442258,3245.7,3245.6,0.001]
[1765516225766,11.07002258,3245.7,3245.6,0.001]
[1765516226713,0.405504,3245.3,3244.4,0.1806]
[1765516226996,0.405504,3245.3,3243.0,0.1806]
[1765516226997,0.58047529,3244.4,3243.7,0.1806]
[1765516227205,5.69818258,3244.0,3243.7,0.1806]
[1765516227504,5.69818258,3244.0,3243.7,0.6589]
[1765516227664,5.69818258,3244.0,3243.9,0.4771]
[1765516227865,8.78079663,3244.0,3243.9,0.4771]
[1765516228311,12.89530568,3244.0,3243.5,0.1806]
[1765516228609,5.69818258,3243.7,3243.5,0.1806]
[1765516228997,5.69818258,3243.7,3243.2,0.1806]
[1765516229171,6.27865787,3243.7,3243.6,0.4771]
[1765516229504,6.95522366,3243.7,3243.6,0.4771]
[1765516229870,4.33994023,3243.7,3243.6,0.4771]
[1765516230068,0.615095,3244.0,3243.6,0.9554]
[1765516230267,0.58047529,3244.1,3243.9,0.4771]
[1765516230486,0.487,3244.0,3243.9,0.4771]
[1765516230666,0.9038,3244.0,3243.2,0.1806]
[1765516230868,0.9542,3244.0,3243.3,0.4783]
[1765516231093,1.25695233,3244.0,3243.9,0.4771]
[1765516231975,1.25695233,3244.0,3243.9,0.9554]
[1765516232178,0.487,3244.0,3243.9,0.9554]
[1765516233779,3.56961405,3244.0,3243.9,0.9554]
[1765516233971,0.487,3244.0,3243.9,0.9554]
[1765516239671,0.487,3244.5,3243.9,4.03810908]
[1765516239998,3.08147417,3245.2,3244.8,0.4771]
[1765516240195,1.06847529,3245.1,3244.4,0.1806]
[1765516240398,0.03081679,3245.0,3244.4,0.1806]
[1765516240603,1.37662271,3245.1,3244.5,0.4783]
[1765516241703,0.58047529,3244.9,3244.4,0.6589]
[1765516242299,0.58047529,3244.9,3244.5,0.4783]
[1765516242502,0.67438035,3244.8,3244.5,0.4783]
[1765516242672,3.38974962,3245.1,3244.5,0.4783]
[1765516242871,0.83848808,3245.5,3244.5,0.4783]
[1765516242872,3.08118933,3245.5,3245.0,0.4771]
[1765516243069,0.405504,3245.3,3245.0,0.4771]
[1765516243778,3.08147417,3245.2,3245.0,0.4771]
[1765516245430,0.85638808,3245.8,3245.1,0.4717]
[1765516245731,3.238,3246.6,3245.5,0.4717]
[1765516245732,6.16029076,3246.6,3245.5,0.4717]
[1765516245927,0.4856,3246.4,3245.7,0.4717]
[1765516246217,0.4856,3246.4,3245.7,0.9385]
[1765516246428,0.405504,3246.3,3245.7,0.4717]
[1765516246570,0.3845,3245.8,3245.1,0.1882]
[1765516246772,0.51881679,3245.7,3245.1,0.655]
[1765516247780,3.0810944,3245.6,3245.1,0.655]
[1765516247981,0.6650094,3245.5,3245.1,0.655]
[1765516248217,3.0810944,3245.6,3245.4,0.4717]
[1765516248388,3.0810944,3245.6,3245.5,0.4717]
[1765516248583,3.0810944,3245.6,3245.2,0.4668]
[1765516250717,0.488,3245.7,3245.5,0.4717]
[1765516251005,3.08080963,3245.9,3245.6,0.4717]
[1765516251210,0.487,3245.7,3245.6,0.4717]
[1765516251875,0.98597929,3245.4,3244.4,0.1806]
[1765516252075,5.69913968,3245.0,3244.2,0.1882]
[1765516252307,1.26437529,3244.9,3244.2,0.1882]
[1765516252471,0.6963515,3244.8,3244.2,0.1882]
[1765516252679,0.03081679,3244.7,3244.2,0.1882]
[1765516253198,0.6963515,3244.8,3244.6,0.4717]
[1765516253405,0.487,3244.9,3244.2,0.655]
[1765516253597,0.51781679,3244.9,3244.2,0.655]
[1765516253920,0.58047529,3244.7,3244.2,0.655]
[1765516254097,0.61129208,3244.7,3244.2,0.655]
[1765516254605,0.3699,3244.3,3243.7,0.4668]
[1765516254806,0.487,3244.2,3243.7,0.4668]
[1765516255194,0.487,3244.2,3244.1,0.4717]
[1765516256094,3.56942401,3244.2,3244.1,0.6599]
[1765516256327,3.56942401,3244.2,3243.2,0.1806]
[1765516256328,7.37869042,3244.2,3243.2,0.1806]
[1765516256616,1.47047929,3244.1,3243.2,0.1806]
[1765516256776,1.47047929,3244.1,3243.2,0.6474]
[1765516257404,0.488,3244.0,3243.3,0.4668]
[1765516257819,0.405504,3243.9,3243.2,0.1806]
[1765516257989,3.08280411,3243.8,3243.2,0.1806]
[1765516258190,3.78869707,3243.8,3243.2,0.6474]
[1765516258391,6.87150118,3243.8,3243.2,0.6474]
[1765516258596,7.35710118,3243.8,3243.0,0.6474]
[1765516258913,0.58047529,3243.7,3243.1,0.4668]
[1765516259094,3.78869707,3243.8,3243.1,0.4668]
[1765516259292,0.488,3243.7,3243.1,0.4668]
[1765516259590,1.06847529,3243.7,3243.0,0.1806]
[1765516259796,0.405504,3243.6,3243.0,0.1806]
[1765516260192,4.15139948,3243.7,3243.0,0.6474]
[1765516260521,3.08278947,3243.9,3243.0,3.73095421]
[1765516260836,3.08278947,3243.9,3243.0,0.1806]
[1765516260837,0.405504,3243.7,3243.0,0.1806]
[1765516261514,0.58047529,3243.8,3243.6,0.4717]
[1765516261698,0.58047529,3243.8,3243.7,0.4717]
[1765516262025,1.06847529,3243.8,3243.7,0.4717]
[1765516262413,0.488,3243.8,3243.7,0.9385]
[1765516262826,0.1969,3244.5,3243.7,0.9385]
[1765516262827,3.08185404,3244.8,3243.7,7.10428628]
[1765516263039,3.08185404,3244.8,3243.9,0.4717]
[1765516263040,0.3764354,3244.7,3243.9,0.4717]
[1765516263326,0.8644354,3244.7,3243.9,0.4717]
[1765516263528,0.488,3244.6,3244.0,0.4668]
[1765516264133,0.488,3244.6,3244.1,0.1882]
[1765516264339,0.488,3244.6,3244.5,0.4717]
[1765516266131,3.08156913,3245.1,3244.5,0.9385]
[1765516266314,0.488,3245.0,3244.6,0.4717]
[1765516266518,3.56972078,3245.0,3244.6,0.4668]
[1765516266830,4.15019607,3245.0,3244.9,0.4717]
[1765516267222,0.488,3245.0,3244.9,0.4717]
[1765516267398,3.48823721,3245.2,3244.9,0.4717]
[1765516267603,0.488,3245.1,3244.9,0.4717]
[1765516267815,0.488,3245.1,3245.0,0.4668]
[1765516268029,0.488,3245.1,3245.0,0.9385]
[1765516268406,3.92498112,3245.1,3244.5,0.4668]
[1765516268607,0.8434,3245.1,3244.6,0.4668]
[1765516268815,3.92502837,3245.1,3244.6,0.4668]
[1765516269719,4.62566956,3245.1,3244.6,0.4668]
[1765516269924,1.54404119,3245.1,3244.6,0.4668]
[1765516270126,1.18864119,3245.1,3245.0,0.4717]
[1765516270343,4.27021032,3245.1,3244.6,0.4668]
[1765516270527,0.03081679,3245.0,3244.6,0.4668]
[1765516271137,0.76906801,3245.0,3244.6,0.4668]
[1765516272049,0.4578,3244.7,3244.1,0.1882]
[1765516272249,0.51881679,3244.6,3244.1,0.1882]
[1765516272420,0.51881679,3244.6,3244.1,0.655]
[1765516272920,0.51881679,3244.6,3244.1,0.6538]
[1765516273645,0.488,3244.6,3244.1,0.1882]
[1765516273845,0.488,3244.6,3244.2,0.4656]
[1765516274047,0.488,3244.6,3244.5,0.4632]
[1765516274429,0.73825122,3245.0,3244.5,0.9288]
[1765516274663,3.08163981,3245.1,3244.9,0.4632]
[1765516274833,0.488,3245.0,3244.6,0.4656]
[1765516276037,0.488,3245.0,3244.9,0.4649]
[1765516276344,6.1618091,3245.8,3244.9,0.4649]
[1765516276568,0.488,3245.7,3245.1,0.6531]
[1765516276763,1.7539962,3245.7,3245.1,0.6531]
[1765516277640,1.7539962,3245.7,3244.8,0.1918]
[1765516277641,0.405504,3245.6,3244.8,0.1918]
[1765516277846,0.405504,3245.6,3244.5,0.4809]
[1765516277847,0.3489,3245.2,3244.6,0.1918]
[1765516278074,0.8369,3245.2,3244.6,0.1918]
[1765516278274,3.08156913,3245.1,3244.6,0.1918]
[1765516278577,3.7815689,3245.1,3244.7,0.4809]
[1765516283273,3.7815689,3245.1,3245.0,0.4649]
[1765516283472,0.69999977,3245.1,3245.0,0.4649]
[1765516284255,3.7815689,3245.1,3245.0,0.4649]
[1765516286386,3.7815689,3245.1,3245.0,0.9458]
[1765516286586,0.69999977,3245.1,3245.0,0.9458]
[1765516286886,3.08139355,3245.3,3245.0,0.4649]
[1765516287188,4.75254129,3245.7,3245.1,1.1244]
[1765516287189,6.1621888,3245.6,3245.1,1.1244]
[1765516287351,6.1621888,3245.6,3245.2,0.4649]
[1765516287557,0.73357097,3245.5,3245.2,0.4649]
[1765516289078,3.08128427,3245.4,3245.2,0.4649]
[1765516292184,0.8437,3245.3,3244.8,0.4809]
[1765516292379,0.8437,3245.3,3244.7,0.4809]
[1765516292591,0.488,3245.3,3245.2,0.4649]
[1765516292998,0.91828552,3245.3,3245.2,0.4649]